[Event "*** Titled Tuesday Blitz"]
[Site "Chess.com"]
[Date "2020.11.10"]
[Round "8"]
[White "KononenkoD"]
[Black "SaqoChess_Twitch"]
[Result "1-0"]
[WhiteElo "2634"]
[BlackElo "2441"]
[TimeControl "180+1"]
[EndTime "11:33:41 PST"]
[Termination "KononenkoD won by checkmate"]

1. d4 {[%clk 0:02:53.9]} 1... d5 {[%clk 0:02:59.5]} 2. c4 {[%clk 0:02:54.3]}
2... e6 {[%clk 0:02:59.3]} 3. Nf3 {[%clk 0:02:53.6]} 3... Nf6 {[%clk 0:02:59.4]}
4. g3 {[%clk 0:02:54.1]} 4... Be7 {[%clk 0:02:59.4]} 5. Bg2 {[%clk 0:02:54.3]}
5... O-O {[%clk 0:03:00.3]} 6. O-O {[%clk 0:02:54.1]} 6... dxc4 {[%clk
0:03:01.2]} 7. Qc2 {[%clk 0:02:53.7]} 7... a6 {[%clk 0:03:01.8]} 8. a4 {[%clk
0:02:53.9]} 8... Bd7 {[%clk 0:03:01.8]} 9. Qxc4 {[%clk 0:02:54.5]} 9... Bc6
{[%clk 0:03:02.3]} 10. Bf4 {[%clk 0:02:55.1]} 10... b5 {[%clk 0:03:01.3]} 11.
Qc1 {[%clk 0:02:45.9]} 11... Nd5 {[%clk 0:03:00.1]} 12. Nc3 {[%clk 0:02:31.9]}
12... Nxf4 {[%clk 0:02:57.7]} 13. Qxf4 {[%clk 0:02:31.1]} 13... b4 {[%clk
0:02:57.7]} 14. Ne4 {[%clk 0:02:29.4]} 14... Nd7 {[%clk 0:02:55]} 15. Rfc1
{[%clk 0:02:26.1]} 15... Bxe4 {[%clk 0:02:53.6]} 16. Qxe4 {[%clk 0:02:25.6]}
16... c5 {[%clk 0:02:54.5]} 17. dxc5 {[%clk 0:02:12.4]} 17... Nxc5 {[%clk
0:02:55.4]} 18. Qe3 {[%clk 0:02:02.8]} 18... Rc8 {[%clk 0:02:52.5]} 19. Rc4
{[%clk 0:01:44.7]} 19... a5 {[%clk 0:02:38.4]} 20. Ne5 {[%clk 0:01:31.6]} 20...
Qd6 {[%clk 0:02:23.3]} 21. Rac1 {[%clk 0:01:26.9]} 21... Rfd8 {[%clk 0:02:08.6]}
22. h4 {[%clk 0:01:17.3]} 22... f6 {[%clk 0:02:03.3]} 23. Nf3 {[%clk 0:00:52.8]}
23... e5 {[%clk 0:01:58.5]} 24. Bh3 {[%clk 0:00:46.4]} 24... Rc7 {[%clk
0:01:54.5]} 25. Ne1 {[%clk 0:00:46.4]} 25... Na6 {[%clk 0:01:48.7]} 26. Nd3
{[%clk 0:00:41.1]} 26... Rxc4 {[%clk 0:01:47]} 27. Rxc4 {[%clk 0:00:42]} 27...
g6 {[%clk 0:01:36.8]} 28. Bg2 {[%clk 0:00:23]} 28... Kg7 {[%clk 0:01:28.9]} 29.
Rc6 {[%clk 0:00:22.9]} 29... Qd4 {[%clk 0:01:11.2]} 30. Qxd4 {[%clk 0:00:21.4]}
30... Rxd4 {[%clk 0:01:12.1]} 31. Rxa6 {[%clk 0:00:21.8]} 31... e4 {[%clk
0:01:12.8]} 32. Nf4 {[%clk 0:00:20.9]} 32... Rd2 {[%clk 0:01:13.1]} 33. Rxa5
{[%clk 0:00:18.6]} 33... Rxb2 {[%clk 0:01:12.2]} 34. Bxe4 {[%clk 0:00:18.4]}
34... f5 {[%clk 0:01:12.5]} 35. Bd3 {[%clk 0:00:18.2]} 35... Ra2 {[%clk
0:01:10.9]} 36. Ra7 {[%clk 0:00:17.7]} 36... Kf8 {[%clk 0:01:10.4]} 37. Ne6+
{[%clk 0:00:16.9]} 37... Kf7 {[%clk 0:01:09.3]} 38. Ng5+ {[%clk 0:00:17.3]}
38... Ke8 {[%clk 0:01:09.3]} 39. Bb5+ {[%clk 0:00:16.6]} 39... Kf8 {[%clk
0:01:08.7]} 40. Nxh7+ {[%clk 0:00:16.7]} 40... Kf7 {[%clk 0:01:09.1]} 41. Ng5+
{[%clk 0:00:17.1]} 41... Kf8 {[%clk 0:01:09.7]} 42. Ne6+ {[%clk 0:00:17]} 42...
Kf7 {[%clk 0:01:10.1]} 43. Bc4 {[%clk 0:00:17.4]} 43... Ra1+ {[%clk 0:01:09.3]}
44. Kg2 {[%clk 0:00:17.8]} 44... Kf6 {[%clk 0:01:10.2]} 45. Nf4 {[%clk
0:00:16.9]} 45... Rc1 {[%clk 0:01:08.1]} 46. Nd5+ {[%clk 0:00:15.4]} 46... Ke5
{[%clk 0:01:08.7]} 47. Rxe7+ {[%clk 0:00:15.4]} 47... Kd4 {[%clk 0:01:09.4]} 48.
Ne3 {[%clk 0:00:15.7]} 48... Ra1 {[%clk 0:01:07.6]} 49. Rd7+ {[%clk 0:00:16]}
49... Kc5 {[%clk 0:01:07]} 50. Rd5+ {[%clk 0:00:16]} 50... Kc6 {[%clk 0:01:07]}
51. a5 {[%clk 0:00:14.1]} 51... Rc1 {[%clk 0:01:07.9]} 52. a6 {[%clk 0:00:13]}
52... Ra1 {[%clk 0:01:08.8]} 53. Rd8 {[%clk 0:00:11.7]} 53... Kc5 {[%clk
0:01:09.7]} 54. Rc8+ {[%clk 0:00:11.6]} 54... Kb6 {[%clk 0:01:09.8]} 55. f3
{[%clk 0:00:10.7]} 55... Ra3 {[%clk 0:01:10]} 56. Kf2 {[%clk 0:00:10.7]} 56...
Rc3 {[%clk 0:01:10.2]} 57. Rb8+ {[%clk 0:00:09.4]} 57... Ka7 {[%clk 0:01:09.8]}
58. Rb7+ {[%clk 0:00:09.7]} 58... Ka8 {[%clk 0:01:10.7]} 59. Bd5 {[%clk
0:00:09.8]} 59... g5 {[%clk 0:01:10]} 60. a7 {[%clk 0:00:08.9]} 60... f4 {[%clk
0:01:09.1]} 61. Rd7+ {[%clk 0:00:08.8]} 61... Rc6 {[%clk 0:01:08.7]} 62. Bxc6#
{[%clk 0:00:09.1]} 1-0

[Event "*** Titled Tuesday Blitz"]
[Site "Chess.com"]
[Date "2020.11.10"]
[Round "8"]
[White "Matibar"]
[Black "Sibelephant"]
[Result "0-1"]
[WhiteElo "2781"]
[BlackElo "3081"]
[TimeControl "180+1"]
[EndTime "11:33:43 PST"]
[Termination "Sibelephant won by resignation"]

1. e4 {[%clk 0:03:00.9]} 1... c5 {[%clk 0:02:57.4]} 2. Ne2 {[%clk 0:03:01.1]}
2... Nf6 {[%clk 0:02:54.5]} 3. Nbc3 {[%clk 0:02:59.9]} 3... d5 {[%clk
0:02:54.4]} 4. exd5 {[%clk 0:02:59.6]} 4... Nxd5 {[%clk 0:02:54.7]} 5. g3 {[%clk
0:02:58.9]} 5... Nxc3 {[%clk 0:02:50]} 6. bxc3 {[%clk 0:02:58.5]} 6... Bd7
{[%clk 0:02:47.2]} 7. Bg2 {[%clk 0:02:58.4]} 7... Bc6 {[%clk 0:02:47.5]} 8. f3
{[%clk 0:02:58.3]} 8... e6 {[%clk 0:02:47.2]} 9. d3 {[%clk 0:02:57.5]} 9... Nd7
{[%clk 0:02:44.2]} 10. Be3 {[%clk 0:02:57.2]} 10... Be7 {[%clk 0:02:44.5]} 11.
O-O {[%clk 0:02:56.3]} 11... O-O {[%clk 0:02:44.3]} 12. Qd2 {[%clk 0:02:53.9]}
12... b5 {[%clk 0:02:39.1]} 13. a4 {[%clk 0:02:45.5]} 13... a6 {[%clk
0:02:32.5]} 14. axb5 {[%clk 0:02:45.2]} 14... axb5 {[%clk 0:02:32.8]} 15. Rxa8
{[%clk 0:02:16.4]} 15... Qxa8 {[%clk 0:02:32.4]} 16. Nc1 {[%clk 0:02:17.3]}
16... c4 {[%clk 0:02:06.9]} 17. Ne2 {[%clk 0:02:09.3]} 17... cxd3 {[%clk
0:01:45.2]} 18. cxd3 {[%clk 0:02:07.4]} 18... e5 {[%clk 0:01:45.7]} 19. d4
{[%clk 0:01:14.7]} 19... Rd8 {[%clk 0:01:44.9]} 20. Bg5 {[%clk 0:00:50.7]} 20...
f6 {[%clk 0:01:39.4]} 21. Be3 {[%clk 0:00:50.6]} 21... Nb6 {[%clk 0:01:39.7]}
22. Qc2 {[%clk 0:00:44.3]} 22... Nc4 {[%clk 0:01:37.1]} 23. Bc1 {[%clk
0:00:44.2]} 23... Ba3 {[%clk 0:01:05.8]} 24. dxe5 {[%clk 0:00:37.4]} 24... fxe5
{[%clk 0:00:42]} 25. Bg5 {[%clk 0:00:36.6]} 25... Bc5+ {[%clk 0:00:39]} 26. Kh1
{[%clk 0:00:36.3]} 26... Rd6 {[%clk 0:00:39.2]} 27. g4 {[%clk 0:00:17.3]} 27...
h6 {[%clk 0:00:35.8]} 28. Bc1 {[%clk 0:00:16.9]} 28... Be3 {[%clk 0:00:33.8]}
29. Ng3 {[%clk 0:00:16.2]} 29... Bf4 {[%clk 0:00:24.8]} 30. Nf5 {[%clk
0:00:15.1]} 30... Rd7 {[%clk 0:00:23.9]} 31. Bxf4 {[%clk 0:00:12.4]} 31... exf4
{[%clk 0:00:24]} 32. Qe2 {[%clk 0:00:13]} 32... Kh8 {[%clk 0:00:10.9]} 33. Re1
{[%clk 0:00:12.8]} 33... Qd8 {[%clk 0:00:09.2]} 34. Qe6 {[%clk 0:00:11.2]} 34...
Rd1 {[%clk 0:00:08.5]} 35. h4 {[%clk 0:00:10.3]} 35... Ne3 {[%clk 0:00:04.6]}
36. Qxc6 {[%clk 0:00:07.6]} 36... Rxe1+ {[%clk 0:00:04.4]} 37. Kh2 {[%clk
0:00:08.5]} 37... Nxf5 {[%clk 0:00:04.6]} 38. gxf5 {[%clk 0:00:04.4]} 38...
Qxh4+ {[%clk 0:00:04.3]} 0-1

[Event "*** Titled Tuesday Blitz"]
[Site "Chess.com"]
[Date "2020.11.10"]
[Round "8"]
[White "GOGIEFF"]
[Black "Infernal_XaM"]
[Result "1-0"]
[WhiteElo "2900"]
[BlackElo "2823"]
[TimeControl "180+1"]
[EndTime "11:33:45 PST"]
[Termination "GOGIEFF won on time"]

1. d4 {[%clk 0:03:00.9]} 1... Nf6 {[%clk 0:03:00]} 2. c4 {[%clk 0:03:01]} 2...
g6 {[%clk 0:03:00.5]} 3. Nc3 {[%clk 0:03:01.3]} 3... d5 {[%clk 0:03:00.2]} 4.
cxd5 {[%clk 0:02:55.3]} 4... Nxd5 {[%clk 0:03:00.3]} 5. e4 {[%clk 0:02:55.9]}
5... Nxc3 {[%clk 0:03:00.5]} 6. bxc3 {[%clk 0:02:56.4]} 6... Bg7 {[%clk
0:03:01.2]} 7. Bc4 {[%clk 0:02:56.4]} 7... O-O {[%clk 0:03:01.4]} 8. Ne2 {[%clk
0:02:56.6]} 8... Nc6 {[%clk 0:03:00.8]} 9. O-O {[%clk 0:02:55.3]} 9... Na5
{[%clk 0:02:59.8]} 10. Bd3 {[%clk 0:02:53.5]} 10... c5 {[%clk 0:03:00]} 11. Be3
{[%clk 0:02:48.9]} 11... b6 {[%clk 0:02:58.5]} 12. Rc1 {[%clk 0:02:44.2]} 12...
e5 {[%clk 0:02:51.4]} 13. dxc5 {[%clk 0:02:44.1]} 13... Be6 {[%clk 0:02:51]} 14.
c4 {[%clk 0:02:44.5]} 14... Rc8 {[%clk 0:02:48.9]} 15. Qc2 {[%clk 0:02:19.3]}
15... bxc5 {[%clk 0:02:29.6]} 16. Rfd1 {[%clk 0:02:18.3]} 16... Qd6 {[%clk
0:01:50]} 17. Nc3 {[%clk 0:02:11.1]} 17... Nc6 {[%clk 0:01:50]} 18. Nd5 {[%clk
0:02:10]} 18... Nd4 {[%clk 0:01:50]} 19. Qa4 {[%clk 0:02:09.9]} 19... f5 {[%clk
0:01:40.3]} 20. Rb1 {[%clk 0:02:03.3]} 20... Rf7 {[%clk 0:01:37.6]} 21. Bxd4
{[%clk 0:01:54.8]} 21... exd4 {[%clk 0:01:36.9]} 22. exf5 {[%clk 0:01:53.6]}
22... gxf5 {[%clk 0:01:29.4]} 23. Re1 {[%clk 0:01:53.7]} 23... Kh8 {[%clk
0:01:26.6]} 24. Re2 {[%clk 0:01:43.1]} 24... Be5 {[%clk 0:00:55.4]} 25. h3
{[%clk 0:01:37.8]} 25... Bxd5 {[%clk 0:00:54]} 26. cxd5 {[%clk 0:01:37.4]} 26...
Rg8 {[%clk 0:00:54.2]} 27. Qc6 {[%clk 0:01:33]} 27... Rfg7 {[%clk 0:00:38]} 28.
f3 {[%clk 0:01:33.1]} 28... Bf4 {[%clk 0:00:16.9]} 29. Qxd6 {[%clk 0:01:31]}
29... Bxd6 {[%clk 0:00:17]} 30. Rbb2 {[%clk 0:01:31.3]} 30... Rc7 {[%clk
0:00:15.8]} 31. Rbc2 {[%clk 0:01:29.1]} 31... Rf8 {[%clk 0:00:14.9]} 32. Re6
{[%clk 0:01:26.7]} 32... Rd7 {[%clk 0:00:12.7]} 33. Kf1 {[%clk 0:01:23.5]} 33...
Kg7 {[%clk 0:00:12.8]} 34. a4 {[%clk 0:01:22.3]} 34... Rf6 {[%clk 0:00:13.1]}
35. Re8 {[%clk 0:01:14.1]} 35... Re7 {[%clk 0:00:11.8]} 36. Rxe7+ {[%clk
0:01:04]} 36... Bxe7 {[%clk 0:00:12.1]} 37. a5 {[%clk 0:01:04.6]} 37... Bd6
{[%clk 0:00:10.3]} 38. Rb2 {[%clk 0:01:02.5]} 38... Rf7 {[%clk 0:00:09.2]} 39.
a6 {[%clk 0:01:02.9]} 39... Kf6 {[%clk 0:00:09.4]} 40. Bc4 {[%clk 0:00:55.3]}
40... Ke5 {[%clk 0:00:07.9]} 41. Re2+ {[%clk 0:00:53.7]} 41... Kf4 {[%clk
0:00:08.2]} 42. Kf2 {[%clk 0:00:54.1]} 42... Kg5 {[%clk 0:00:08]} 43. g3 {[%clk
0:00:52.1]} 43... Rd7 {[%clk 0:00:05.3]} 44. h4+ {[%clk 0:00:51.9]} 44... Kf6
{[%clk 0:00:05.7]} 45. Re6+ {[%clk 0:00:52.2]} 45... Kf7 {[%clk 0:00:06.1]} 46.
Bd3 {[%clk 0:00:52.2]} 46... f4 {[%clk 0:00:05.6]} 47. g4 {[%clk 0:00:52.2]}
47... Be7 {[%clk 0:00:05]} 48. Rc6 {[%clk 0:00:51.8]} 48... Kf8 {[%clk
0:00:03.8]} 49. g5 {[%clk 0:00:47.2]} 49... Rxd5 {[%clk 0:00:02.6]} 50. Rc7
{[%clk 0:00:47.6]} 50... h6 {[%clk 0:00:01.8]} 51. gxh6 {[%clk 0:00:42.5]} 51...
Bxh4+ {[%clk 0:00:01.9]} 52. Ke2 {[%clk 0:00:42.9]} 52... Re5+ {[%clk 0:00:02]}
53. Kd1 {[%clk 0:00:42.7]} 1-0

[Event "*** Titled Tuesday Blitz"]
[Site "Chess.com"]
[Date "2020.11.10"]
[Round "8"]
[White "Rud_Makarian"]
[Black "Gusarov91"]
[Result "0-1"]
[WhiteElo "2806"]
[BlackElo "2650"]
[TimeControl "180+1"]
[EndTime "11:33:45 PST"]
[Termination "Gusarov91 won by resignation"]

1. d4 {[%clk 0:03:00.9]} 1... Nf6 {[%clk 0:02:59.1]} 2. c4 {[%clk 0:02:59.8]}
2... e6 {[%clk 0:02:57]} 3. Nf3 {[%clk 0:02:59.7]} 3... b6 {[%clk 0:02:57]} 4.
g3 {[%clk 0:02:59.6]} 4... Bb7 {[%clk 0:02:57.5]} 5. Bg2 {[%clk 0:02:59.3]} 5...
Bb4+ {[%clk 0:02:58.1]} 6. Bd2 {[%clk 0:02:59]} 6... Be7 {[%clk 0:02:58.2]} 7.
O-O {[%clk 0:02:58.9]} 7... O-O {[%clk 0:02:58.6]} 8. Nc3 {[%clk 0:02:58.5]}
8... d5 {[%clk 0:02:59]} 9. cxd5 {[%clk 0:02:55.4]} 9... Nxd5 {[%clk 0:02:58.8]}
10. Re1 {[%clk 0:02:54.2]} 10... Nd7 {[%clk 0:02:56.1]} 11. e4 {[%clk
0:02:53.9]} 11... Nxc3 {[%clk 0:02:56.4]} 12. Bxc3 {[%clk 0:02:54.8]} 12... Nf6
{[%clk 0:02:55.1]} 13. Qc2 {[%clk 0:02:40.3]} 13... c5 {[%clk 0:02:52.3]} 14.
Rad1 {[%clk 0:02:31.8]} 14... cxd4 {[%clk 0:02:50.7]} 15. Nxd4 {[%clk
0:02:32.7]} 15... Qc8 {[%clk 0:02:45.4]} 16. Nb5 {[%clk 0:02:08.4]} 16... Rd8
{[%clk 0:02:20.1]} 17. Rxd8+ {[%clk 0:02:01.1]} 17... Qxd8 {[%clk 0:02:19.7]}
18. Bxf6 {[%clk 0:01:44.8]} 18... gxf6 {[%clk 0:02:00.2]} 19. Nc3 {[%clk
0:01:28.3]} 19... Rc8 {[%clk 0:01:59.4]} 20. e5 {[%clk 0:01:28.1]} 20... Bxg2
{[%clk 0:01:57.3]} 21. Kxg2 {[%clk 0:01:29]} 21... f5 {[%clk 0:01:51.7]} 22. Qe2
{[%clk 0:01:27.8]} 22... Bb4 {[%clk 0:01:48.6]} 23. Rd1 {[%clk 0:01:26.7]} 23...
Qc7 {[%clk 0:01:47.8]} 24. Nb5 {[%clk 0:01:19.5]} 24... Qc6+ {[%clk 0:01:46.1]}
25. Kh3 {[%clk 0:01:19.6]} 25... Qc4 {[%clk 0:01:30.4]} 26. Qxc4 {[%clk
0:00:47.2]} 26... Rxc4 {[%clk 0:01:30.2]} 27. a3 {[%clk 0:00:28.2]} 27... Bc5
{[%clk 0:01:30.4]} 28. Rd2 {[%clk 0:00:28.3]} 28... a6 {[%clk 0:01:28.9]} 29.
Nc7 {[%clk 0:00:25.8]} 29... Bxf2 {[%clk 0:01:18.2]} 30. Rd8+ {[%clk 0:00:20.2]}
30... Kg7 {[%clk 0:01:16.9]} 31. Ne8+ {[%clk 0:00:21.1]} 31... Kh6 {[%clk
0:01:09.6]} 32. Nd6 {[%clk 0:00:20.7]} 32... Rc7 {[%clk 0:01:04.1]} 33. Rg8
{[%clk 0:00:15.2]} 33... Bd4 {[%clk 0:00:52.6]} 34. Ne8 {[%clk 0:00:14.8]} 34...
Rc8 {[%clk 0:00:47.9]} 35. g4 {[%clk 0:00:04.7]} 35... fxg4+ {[%clk 0:00:45.5]}
36. Kxg4 {[%clk 0:00:05.4]} 36... Bxe5 {[%clk 0:00:44.9]} 37. h4 {[%clk
0:00:06.3]} 37... f5+ {[%clk 0:00:43.3]} 38. Kf3 {[%clk 0:00:06.7]} 38... Bxb2
{[%clk 0:00:39.1]} 39. Kf4 {[%clk 0:00:05.9]} 39... Rc4+ {[%clk 0:00:33.8]} 40.
Kg3 {[%clk 0:00:04.6]} 40... Rg4+ {[%clk 0:00:33.4]} 41. Rxg4 {[%clk 0:00:03.6]}
41... fxg4 {[%clk 0:00:34]} 42. a4 {[%clk 0:00:03.5]} 42... Kh5 {[%clk
0:00:28.9]} 43. Kg2 {[%clk 0:00:04]} 43... Be5 {[%clk 0:00:29]} 44. Kg1 {[%clk
0:00:02]} 44... b5 {[%clk 0:00:29.1]} 45. Kg2 {[%clk 0:00:02.9]} 45... bxa4
{[%clk 0:00:29.3]} 46. Kf2 {[%clk 0:00:01.6]} 46... a3 {[%clk 0:00:29.6]} 47.
Ke3 {[%clk 0:00:01.8]} 47... a2 {[%clk 0:00:30.1]} 48. Ke4 {[%clk 0:00:02.7]}
0-1

[Event "*** Titled Tuesday Blitz"]
[Site "Chess.com"]
[Date "2020.11.10"]
[Round "8"]
[White "Semen_Khanin"]
[Black "Korchmar_Vasiliy"]
[Result "1-0"]
[WhiteElo "2790"]
[BlackElo "2628"]
[TimeControl "180+1"]
[EndTime "11:33:51 PST"]
[Termination "Semen_Khanin won by resignation"]

1. c4 {[%clk 0:03:00.9]} 1... c5 {[%clk 0:02:58.7]} 2. Nc3 {[%clk 0:03:00.1]}
2... Nc6 {[%clk 0:02:58.4]} 3. g3 {[%clk 0:03:00.5]} 3... g6 {[%clk 0:02:58.2]}
4. Bg2 {[%clk 0:03:00.9]} 4... Bg7 {[%clk 0:02:58.6]} 5. Nf3 {[%clk 0:02:57.4]}
5... d6 {[%clk 0:02:57.6]} 6. O-O {[%clk 0:02:57.4]} 6... e6 {[%clk 0:02:57.2]}
7. b3 {[%clk 0:02:55.5]} 7... Nge7 {[%clk 0:02:56.9]} 8. Bb2 {[%clk 0:02:55.8]}
8... O-O {[%clk 0:02:57.5]} 9. Qc2 {[%clk 0:02:53.7]} 9... b6 {[%clk 0:02:53.9]}
10. Rad1 {[%clk 0:02:53.7]} 10... Bb7 {[%clk 0:02:48.6]} 11. e3 {[%clk
0:02:54.1]} 11... d5 {[%clk 0:02:38.6]} 12. cxd5 {[%clk 0:02:35.3]} 12... exd5
{[%clk 0:02:05.8]} 13. d4 {[%clk 0:02:00.4]} 13... cxd4 {[%clk 0:02:04.4]} 14.
Nxd4 {[%clk 0:01:59.8]} 14... Nxd4 {[%clk 0:02:04.6]} 15. exd4 {[%clk
0:02:00.2]} 15... Nf5 {[%clk 0:02:03]} 16. Rfe1 {[%clk 0:01:46.5]} 16... Nxd4
{[%clk 0:01:53.3]} 17. Qd2 {[%clk 0:01:46.2]} 17... Rc8 {[%clk 0:01:37.7]} 18.
h4 {[%clk 0:01:42.8]} 18... h5 {[%clk 0:01:25.3]} 19. Qd3 {[%clk 0:00:56.9]}
19... Ne6 {[%clk 0:01:13.1]} 20. Nxd5 {[%clk 0:00:18.6]} 20... Bxb2 {[%clk
0:00:36.6]} 21. Rxe6 {[%clk 0:00:18.6]} 21... fxe6 {[%clk 0:00:35.5]} 22. Qxg6+
{[%clk 0:00:18.7]} 22... Bg7 {[%clk 0:00:35.8]} 23. Qxe6+ {[%clk 0:00:19]} 23...
Kh8 {[%clk 0:00:35.8]} 24. Ne3 {[%clk 0:00:11.7]} 24... Qc7 {[%clk 0:00:16.6]}
25. Rd7 {[%clk 0:00:10.8]} 25... Qc1+ {[%clk 0:00:16.2]} 26. Rd1 {[%clk
0:00:04.8]} 26... Qb2 {[%clk 0:00:16.3]} 27. Rf1 {[%clk 0:00:02.8]} 27... Bxg2
{[%clk 0:00:15.6]} 28. Kxg2 {[%clk 0:00:03.3]} 28... Rce8 {[%clk 0:00:13.9]} 29.
Qg6 {[%clk 0:00:03.2]} 29... Qe5 {[%clk 0:00:11.1]} 30. Rd1 {[%clk 0:00:02.6]}
30... Qe4+ {[%clk 0:00:10.9]} 31. Qxe4 {[%clk 0:00:02.6]} 31... Rxe4 {[%clk
0:00:11.8]} 32. Rd5 {[%clk 0:00:03.1]} 32... Re5 {[%clk 0:00:07.1]} 33. Rd7
{[%clk 0:00:03.2]} 33... Ra5 {[%clk 0:00:07.1]} 34. a4 {[%clk 0:00:02.9]} 34...
Bd4 {[%clk 0:00:07.3]} 35. Rxd4 {[%clk 0:00:01.1]} 35... b5 {[%clk 0:00:07.7]}
36. Re4 {[%clk 0:00:01.4]} 36... bxa4 {[%clk 0:00:07.9]} 37. bxa4 {[%clk
0:00:02.3]} 37... Rb8 {[%clk 0:00:06]} 38. Rd4 {[%clk 0:00:02.6]} 38... Rb2
{[%clk 0:00:05.9]} 39. Nc4 {[%clk 0:00:02.8]} 39... Rxa4 {[%clk 0:00:05.3]} 40.
Rd8+ {[%clk 0:00:03.1]} 1-0

[Event "*** Titled Tuesday Blitz"]
[Site "Chess.com"]
[Date "2020.11.10"]
[Round "8"]
[White "FMKonstantin_Twitch"]
[Black "VladimirPotkin"]
[Result "1/2-1/2"]
[WhiteElo "2562"]
[BlackElo "2685"]
[TimeControl "180+1"]
[EndTime "11:33:52 PST"]
[Termination "Game drawn by agreement"]

1. d4 {[%clk 0:03:00.9]} 1... Nf6 {[%clk 0:02:58.7]} 2. Nf3 {[%clk 0:03:00]}
2... d5 {[%clk 0:02:56.9]} 3. g3 {[%clk 0:03:00.5]} 3... c6 {[%clk 0:02:55]} 4.
Bg2 {[%clk 0:03:01]} 4... Bf5 {[%clk 0:02:54.7]} 5. O-O {[%clk 0:03:01.5]} 5...
e6 {[%clk 0:02:55]} 6. c4 {[%clk 0:03:02]} 6... Nbd7 {[%clk 0:02:52.6]} 7. Nc3
{[%clk 0:03:01.5]} 7... h6 {[%clk 0:02:26]} 8. Qb3 {[%clk 0:02:57]} 8... Qb6
{[%clk 0:02:24.5]} 9. c5 {[%clk 0:02:54.2]} 9... Qa6 {[%clk 0:02:24.6]} 10. Re1
{[%clk 0:02:52.8]} 10... b6 {[%clk 0:02:22.1]} 11. Bf1 {[%clk 0:02:43.4]} 11...
Qc8 {[%clk 0:02:19.2]} 12. cxb6 {[%clk 0:02:40.3]} 12... axb6 {[%clk 0:02:19]}
13. Bf4 {[%clk 0:02:39.7]} 13... Be7 {[%clk 0:02:16.4]} 14. Rac1 {[%clk
0:02:38.5]} 14... O-O {[%clk 0:02:16.2]} 15. Nb5 {[%clk 0:02:36.9]} 15... c5
{[%clk 0:02:01.2]} 16. dxc5 {[%clk 0:02:07.8]} 16... bxc5 {[%clk 0:01:59.8]} 17.
Nd6 {[%clk 0:02:05.4]} 17... Bxd6 {[%clk 0:01:57.2]} 18. Bxd6 {[%clk 0:02:06.3]}
18... c4 {[%clk 0:01:56.7]} 19. Qe3 {[%clk 0:02:00.1]} 19... Re8 {[%clk
0:01:49.7]} 20. b3 {[%clk 0:01:52.6]} 20... Qa6 {[%clk 0:01:34.4]} 21. Be5
{[%clk 0:01:34.8]} 21... Ng4 {[%clk 0:01:25.9]} 22. Qd4 {[%clk 0:01:30.8]} 22...
Ngxe5 {[%clk 0:01:02.4]} 23. Nxe5 {[%clk 0:01:31.7]} 23... Nxe5 {[%clk
0:01:02.8]} 24. Qxe5 {[%clk 0:01:28.4]} 24... Qxa2 {[%clk 0:00:36.6]} 25. bxc4
{[%clk 0:01:25.5]} 25... dxc4 {[%clk 0:00:35.6]} 26. e4 {[%clk 0:01:23.4]} 26...
Bg6 {[%clk 0:00:32.2]} 27. Bxc4 {[%clk 0:01:23.2]} 27... Qa3 {[%clk 0:00:31.2]}
28. Bf1 {[%clk 0:01:11.4]} 28... Rec8 {[%clk 0:00:28.4]} 29. Ra1 {[%clk
0:01:07.8]} 29... Qb4 {[%clk 0:00:27.9]} 30. Rab1 {[%clk 0:01:01.1]} 30... Qc3
{[%clk 0:00:25.4]} 31. Qxc3 {[%clk 0:00:56.8]} 31... Rxc3 {[%clk 0:00:26.3]} 32.
Rb7 {[%clk 0:00:55.8]} 32... Rac8 {[%clk 0:00:25.5]} 33. Rb4 {[%clk 0:00:47.7]}
33... e5 {[%clk 0:00:23.4]} 34. Kg2 {[%clk 0:00:44.8]} 34... Bh5 {[%clk
0:00:21.9]} 35. Be2 {[%clk 0:00:39.2]} 35... Bxe2 {[%clk 0:00:21.9]} 36. Rxe2
{[%clk 0:00:40.1]} 36... R3c4 {[%clk 0:00:22.1]} 37. Rb5 {[%clk 0:00:40]} 37...
f6 {[%clk 0:00:22.2]} 38. Rb7 {[%clk 0:00:39.1]} 38... h5 {[%clk 0:00:22.2]} 39.
h4 {[%clk 0:00:38.6]} 39... Kh7 {[%clk 0:00:22.3]} 40. Re3 {[%clk 0:00:33.6]}
40... Kg6 {[%clk 0:00:22.4]} 41. Kf3 {[%clk 0:00:33.6]} 41... Rd8 {[%clk
0:00:22]} 42. Ra3 {[%clk 0:00:30.8]} 42... Rcd4 {[%clk 0:00:08.6]} 43. Raa7
{[%clk 0:00:29]} 43... Rg8 {[%clk 0:00:08]} 44. Re7 {[%clk 0:00:25.2]} 44...
Rd3+ {[%clk 0:00:07.6]} 45. Kg2 {[%clk 0:00:25.4]} 45... Rb3 {[%clk 0:00:08.5]}
46. Rab7 {[%clk 0:00:23.6]} 46... Rxb7 {[%clk 0:00:08.1]} 47. Rxb7 {[%clk
0:00:24.5]} 47... Rd8 {[%clk 0:00:08.5]} 48. Re7 {[%clk 0:00:22.7]} 48... Rd4
{[%clk 0:00:08.8]} 49. Kf3 {[%clk 0:00:21.9]} 49... Ra4 {[%clk 0:00:09.3]} 50.
Ke3 {[%clk 0:00:21.7]} 50... Ra3+ {[%clk 0:00:09.8]} 51. Ke2 {[%clk 0:00:21.6]}
51... Ra2+ {[%clk 0:00:10.4]} 52. Kf3 {[%clk 0:00:21.5]} 1/2-1/2